bitfinex/quotes_SOLUSD_20241005
["timestamp","ask_amount","ask_price","bid_price","bid_amount"]
[1728151356699,6.996,142.94,142.92,65.998]
[1728151359796,17.4855,142.98,142.92,65.998]
[1728151360006,6.9955,142.95,142.92,65.998]
[1728151374013,6.996,142.94,142.92,65.998]
[1728151379631,5.996,142.94,142.92,65.998]
[1728151385598,17.4855,142.98,142.92,65.998]
[1728151385805,6.9955,142.95,142.92,65.998]
[1728151386230,6.9946,142.97,142.94,50.0]
[1728151386431,6.9946,142.97,142.95,1.3988995]
[1728151387645,6.9946,142.97,142.94,50.0]
[1728151387938,6.9949,142.96,142.94,50.0]
[1728151389017,6.9954,142.95,142.92,65.998]
[1728151389632,6.996,142.94,142.92,65.998]
[1728151390440,6.997,142.92,142.9,50.0]
[1728151390635,20.0,142.97,142.92,50.0]
[1728151390813,6.996,142.94,142.92,50.0]
[1728151392638,6.996,142.94,142.9,50.0]
[1728151392841,6.9965,142.93,142.9,50.0]
[1728151395938,20.0,142.97,142.9,50.0]
[1728151396119,6.9973,142.92,142.9,50.0]
[1728151397321,6.9974,142.91,142.9,50.0]
[1728151398022,44.027864,142.95,142.88,50.0]
[1728151398222,6.9979,142.9,142.88,50.0]
[1728151411828,20.0,142.93,142.85,65.2417]
[1728151412042,23.776884,142.92,142.85,65.2417]
[1728151412461,6.9998,142.86,142.85,50.0]
[1728151413529,17.4951,142.9,142.85,50.0]
[1728151413730,6.9995,142.87,142.85,50.0]
[1728151429559,23.776884,142.92,142.85,50.0]
[1728151429560,6.999,142.88,142.85,50.0]
[1728151429758,20.0,142.91,142.85,50.0]
[1728151430063,6.9985,142.89,142.85,50.0]
[1728151433558,6.999,142.88,142.85,50.0]
[1728151435040,20.0,142.91,142.85,50.0]
[1728151435041,6.9994,142.87,142.85,50.0]
[1728151438352,6.999,142.88,142.85,50.0]
[1728151438543,6.9987,142.89,142.85,50.0]
[1728151440561,20.0,142.92,142.87,50.0]
[1728151440771,6.998,142.9,142.87,50.0]
[1728151441263,6.9988,142.89,142.86,15.7374]
[1728151441464,6.9993,142.87,142.86,15.7374]
[1728151441662,6.999,142.88,142.86,15.7374]
[1728151442647,6.9993,142.87,142.85,50.0]
[1728151446675,6.9979,142.9,142.86,1.39982708]
[1728151446851,6.9979,142.9,142.86,8.39962708]
[1728151447046,6.9979,142.9,142.86,1.39982708]
[1728151447755,6.9984,142.89,142.86,1.39982708]
[1728151448264,6.9984,142.89,142.85,57.0001]
[1728151448466,6.9989,142.88,142.85,50.0]
[1728151450361,6.9989,142.88,142.86,1.39977433]
[1728151451279,6.9989,142.88,142.85,50.0]
[1728151455475,6.9989,142.88,142.86,1.39977295]
[1728151456861,6.9989,142.88,142.85,50.0]
[1728151464488,17.4952,142.9,142.83,50.0]
[1728151464708,44.027864,142.9,142.82,65.0271]
[1728151464991,44.027864,142.9,142.82,50.0]
[1728151464992,7.0004,142.85,142.82,50.0]
[1728151465159,7.0009,142.84,142.82,50.0]
[1728151466662,7.0013,142.83,142.8,50.0]
[1728151474195,30.682964,142.87,142.78,65.1285]
[1728151474505,7.0023,142.81,142.78,65.1285]
[1728151480084,7.0023,142.81,142.78,50.0]
[1728151481023,7.0028,142.8,142.78,50.0]
[1728151484510,44.027864,142.83,142.76,50.0]
[1728151484887,44.027864,142.83,142.75,15.5849]
[1728151486218,7.0038,142.78,142.75,15.5849]
[1728151488389,44.027864,142.83,142.76,51.40074034]
[1728151488718,7.0033,142.79,142.76,51.40074034]
[1728151490428,7.0033,142.79,142.76,50.0]
[1728151501318,7.0039,142.78,142.76,50.0]
[1728151501493,7.0033,142.79,142.76,50.0]
[1728151503148,7.0033,142.79,142.75,15.5849]
[1728151503415,7.0033,142.79,142.76,50.0]
[1728151503812,7.0048,142.76,142.74,50.0]
[1728151504126,7.0044,142.77,142.74,50.0]
[1728151504312,7.0039,142.78,142.74,50.0]
[1728151505697,44.027864,142.81,142.73,17.5147]
[1728151505897,7.0046,142.77,142.73,17.5147]
[1728151506126,7.0046,142.77,142.72,57.0063]
[1728151506127,17.5076,142.8,142.72,50.0]
[1728151506324,7.0062,142.73,142.7,50.0]
[1728151506497,23.776884,142.74,142.68,50.0]
[1728151506724,23.776884,142.74,142.67,16.0134]
[1728151507025,23.776884,142.74,142.66,63.28088046]
[1728151507026,7.0076,142.71,142.66,57.0095]
[1728151507228,7.0077,142.7,142.66,50.0]
[1728151507743,7.0086,142.69,142.66,50.0]
[1728151507948,7.0087,142.68,142.64,67.1306494]
[1728151508429,7.0093,142.67,142.64,0.8365494]
[1728151509339,0.12549,142.7,142.64,0.8365494]
[1728151510134,30.786984,142.65,142.64,0.8365494]
[1728151512139,7.0101,142.65,142.64,0.8365494]
[1728151512947,7.0096,142.67,142.64,0.8365494]
[1728151513250,7.0087,142.68,142.64,0.8365494]
[1728151513426,7.0082,142.69,142.64,0.8365494]
[1728151513622,20.0,142.68,142.64,0.8365494]
[1728151514544,27.0077,142.7,142.65,50.0]
[1728151515251,7.0083,142.69,142.65,50.0]
[1728151515551,7.0083,142.69,142.65,63.28088046]
[1728151515733,7.0083,142.69,142.65,13.28088046]
[1728151516443,7.0083,142.69,142.64,21.12792986]
[1728151524430,7.0087,142.68,142.64,21.12792986]
[1728151524626,7.0087,142.68,142.64,0.8365494]
[1728151524627,7.0098,142.66,142.64,0.8365494]
[1728151525428,30.786984,142.65,142.64,0.8365494]
[1728151526830,51.037964,142.65,142.64,0.8365494]
[1728151529481,51.037964,142.65,142.64,4.94e-05]
[1728151535065,59.13428585,142.65,142.64,4.94e-05]
[1728151538463,51.037964,142.65,142.64,4.94e-05]
[1728151544666,27.26108,142.65,142.64,4.94e-05]
[1728151545054,27.0101,142.65,142.64,4.94e-05]
[1728151545754,7.0101,142.65,142.64,4.94e-05]
[1728151546870,27.0101,142.65,142.64,4.94e-05]
[1728151547172,50.786984,142.65,142.64,4.94e-05]
[1728151552460,51.037964,142.65,142.64,4.94e-05]
[1728151553076,50.786984,142.65,142.64,4.94e-05]
[1728151558877,59.13428585,142.65,142.64,4.94e-05]
[1728151560580,51.037964,142.65,142.64,4.94e-05]
[1728151568587,27.0101,142.65,142.64,4.94e-05]
[1728151568783,7.0101,142.65,142.64,4.94e-05]
[1728151569989,27.0101,142.65,142.64,4.94e-05]
[1728151570167,35.10642185,142.65,142.64,4.94e-05]
[1728151571178,58.88330585,142.65,142.64,4.94e-05]
[1728151574495,59.13428585,142.65,142.64,4.94e-05]
[1728151585899,51.037964,142.65,142.64,4.94e-05]
[1728151587794,27.0101,142.65,142.64,4.94e-05]
[1728151588008,7.0093,142.67,142.64,4.94e-05]
[1728151588296,7.84481669,142.68,142.64,4.94e-05]
[1728151588297,7.0097,142.66,142.64,4.94e-05]
[1728151589190,7.0101,142.65,142.64,4.94e-05]
[1728151589395,35.10642185,142.65,142.64,4.94e-05]
[1728151589601,35.23191185,142.65,142.64,4.94e-05]
[1728151590113,35.35740185,142.65,142.64,4.94e-05]
[1728151590275,59.13428585,142.65,142.64,4.94e-05]
[1728151593082,60.35246691,142.65,142.64,4.94e-05]
[1728151593489,59.13428585,142.65,142.64,4.94e-05]
[1728151596479,15.10642185,142.65,142.64,4.94e-05]
[1728151597794,59.13428585,142.65,142.64,4.94e-05]
[1728151601622,58.88330585,142.65,142.64,4.94e-05]
[1728151610424,50.786984,142.65,142.64,4.94e-05]
[1728151610834,61.08023402,142.65,142.64,4.94e-05]
[1728151616633,7.0101,142.65,142.64,4.94e-05]
[1728151632634,34.93427852,142.65,142.64,4.94e-05]
[1728151632941,40.50742513,142.65,142.64,4.94e-05]
[1728151636836,60.50742513,142.65,142.64,4.94e-05]
[1728151640462,60.75840513,142.65,142.64,4.94e-05]
[1728151640845,60.50742513,142.65,142.64,4.94e-05]
[1728151644169,60.75840513,142.65,142.64,4.94e-05]
[1728151649095,61.97660244,142.65,142.64,4.94e-05]
[1728151654069,7.014,142.57,142.56,15.6695]
[1728151660391,7.016,142.53,142.52,15.6695]
[1728151660576,7.0155,142.54,142.52,15.6695]
[1728151661187,7.0141,142.57,142.52,22.6857]
[1728151661387,7.0148,142.56,142.52,15.6695]
[1728151661788,7.0151,142.55,142.52,15.6695]
[1728151662899,7.016,142.53,142.52,15.6695]
[1728151663198,17.536,142.57,142.52,15.6695]
[1728151663199,23.776884,142.56,142.52,15.6695]
[1728151663392,7.0156,142.54,142.52,15.6695]
[1728151664290,7.016,142.53,142.52,15.6695]
[1728151665090,7.0157,142.54,142.52,15.6695]
[1728151665801,23.776884,142.56,142.52,15.6695]
[1728151666107,7.016,142.53,142.52,15.6695]
[1728151668580,7.017,142.51,142.5,0.8365494]
[1728151669399,30.793884,142.51,142.5,0.8365494]
[1728151669914,7.017,142.51,142.5,0.8365494]
[1728151671794,20.0,142.53,142.5,0.8365494]
[1728151671992,7.017,142.51,142.5,0.8365494]
[1728151673080,7.0166,142.52,142.5,0.8365494]
[1728151673280,7.0161,142.53,142.5,0.8365494]
[1728151674310,27.0156,142.54,142.5,0.8365494]
[1728151674484,7.0161,142.53,142.5,0.8365494]
[1728151678517,20.0,142.54,142.5,0.8365494]
[1728151678804,27.0159,142.54,142.5,50.8365494]
[1728151679620,16.73554113,142.55,142.5,71.13452986]
[1728151679801,20.0,142.55,142.51,23.1588]
[1728151680195,20.0,142.56,142.52,7.0161]
[1728151680406,20.0,142.56,142.52,20.29698046]
[1728151680599,20.0,142.56,142.53,1.40300559]
[1728151681500,7.0146,142.56,142.52,13.28088046]
[1728151681686,4.14729452,142.55,142.51,22.3016]
[1728151681890,7.0156,142.54,142.51,22.3016]
[1728151688318,7.0165,142.52,142.51,16.1421]
[1728151689989,0.25098,142.55,142.51,16.1421]
[1728151690194,7.0161,142.53,142.51,16.1421]
[1728151690715,7.0165,142.52,142.51,16.1421]
[1728151692218,20.0,142.55,142.51,16.1421]
[1728151692513,7.0165,142.52,142.51,16.1421]
[1728151693290,7.0164,142.53,142.51,16.1421]
[1728151693917,20.0,142.55,142.51,16.1421]
[1728151694122,7.0165,142.52,142.51,16.1421]
[1728151703422,7.017,142.51,142.5,0.8365494]
[1728151717732,30.793884,142.51,142.5,0.8365494]
[1728151721442,50.793884,142.51,142.5,0.8365494]
[1728151735164,51.044864,142.51,142.5,0.8365494]
[1728151739339,60.76530513,142.51,142.5,0.8365494]
[1728151740760,50.793884,142.51,142.5,0.8365494]
[1728151741970,20.0,142.51,142.5,0.8365494]
[1728151742356,27.017,142.51,142.5,0.8365494]
[1728151746370,20.0,142.51,142.5,0.8365494]
[1728151749278,7.0166,142.52,142.5,0.8365494]
[1728151749484,1.21622213,142.53,142.5,0.8365494]
[1728151749778,16.73604113,142.54,142.5,0.8365494]
[1728151749779,9.72044113,142.54,142.5,2.23984886]
[1728151750078,7.0161,142.53,142.5,2.23984886]
[1728151750608,9.72044113,142.54,142.51,16.4772]
[1728151752179,7.0151,142.55,142.51,16.4772]
[1728151752953,9.72044113,142.57,142.51,16.4772]
[1728151753280,7.0157,142.54,142.51,16.4772]
[1728151755883,7.0161,142.53,142.51,16.4772]
[1728151756190,7.0165,142.52,142.51,16.4772]
[1728151756375,23.776884,142.54,142.5,0.8365494]
[1728151756376,7.017,142.51,142.5,0.8365494]
[1728151756767,27.017,142.51,142.5,0.8365494]
[1728151758663,50.919374,142.51,142.5,0.8365494]
[1728151760869,20.0,142.5,142.48,13.5089494]
[1728151761071,7.018,142.49,142.48,13.5089494]
[1728151761375,43.902374,142.51,142.45,50.0]
[1728151761376,7.0186,142.48,142.45,50.0]
[1728151762954,7.0191,142.47,142.45,50.0]
[1728151763366,7.0191,142.47,142.43,7.0209]
[1728151763882,7.0191,142.47,142.43,22.424]
[1728151782487,7.0181,142.49,142.44,58.42392375]
[1728151782799,20.0,142.5,142.45,7.0199]
[1728151782993,6.4156,142.53,142.46,67.80028046]
[1728151783193,7.0173,142.51,142.46,63.28088046]
[1728151784099,7.0173,142.51,142.46,70.29988046]
[1728151784795,7.0175,142.5,142.46,70.29988046]
[1728151785293,7.0175,142.5,142.46,57.019]
[1728151786300,7.0171,142.51,142.46,57.019]
[1728151786513,27.0166,142.52,142.48,57.0184]
[1728151786882,8.23139176,142.54,142.49,7.0176]
[1728151787174,7.0163,142.53,142.49,7.0176]
[1728151787403,7.0163,142.53,142.48,57.0184]
[1728151788999,7.0165,142.52,142.48,57.0184]
[1728151792504,7.0165,142.52,142.48,7.0184]
[1728151792702,7.0165,142.52,142.47,24.5657]
[1728151795889,7.0181,142.49,142.46,50.0]
[1728151796389,7.0176,142.5,142.46,50.0]
[1728151797283,7.0176,142.5,142.46,57.0193]
[1728151800710,7.0171,142.51,142.48,50.0]
[1728151801392,7.0166,142.52,142.48,50.0]
[1728151801589,7.0166,142.52,142.48,57.0183]
[1728151801793,27.016,142.54,142.49,8.42126355]
[1728151802103,27.016,142.54,142.49,25.96546355]
[1728151802481,7.0162,142.53,142.49,25.96546355]
[1728151802686,7.0162,142.53,142.49,24.5621]
[1728151802889,7.0162,142.53,142.49,17.5442]
[1728151803186,7.0166,142.52,142.48,73.1593]
[1728151803609,9.72044113,142.53,142.48,66.1409]
[1728151803788,7.0171,142.51,142.48,66.1409]
[1728151804110,7.0166,142.52,142.48,66.1409]
[1728151810001,23.776884,142.52,142.46,50.0]
[1728151810316,7.018,142.49,142.46,50.0]
[1728151811014,7.0176,142.5,142.46,50.0]
[1728151818412,7.0181,142.49,142.44,71.648]
[1728151819928,7.0181,142.49,142.44,78.6681]
[1728151821598,20.25098,142.51,142.44,65.4643]
[1728151821802,23.776884,142.5,142.44,65.4643]
[1728151822605,7.0186,142.48,142.44,65.4643]
[1728151825509,7.0186,142.48,142.44,15.4643]
[1728151826631,7.02,142.45,142.42,50.0]
[1728151826801,7.0208,142.44,142.4,83.0396]
[1728151827133,7.0208,142.44,142.4,90.062]
[1728151827927,44.027864,142.47,142.4,90.062]
[1728151828102,7.0201,142.45,142.4,90.062]
[1728151829718,43.776884,142.47,142.41,1.40411605]
[1728151829913,21.21597398,142.48,142.44,50.0]
[1728151830115,27.0186,142.48,142.44,50.0]
[1728151830431,7.019,142.47,142.42,87.85478046]
[1728151830932,7.0196,142.46,142.42,74.5739]
[1728151832932,7.0196,142.46,142.42,67.5525]
[1728151834618,7.0196,142.46,142.42,74.5738]
[1728151838157,10.07079113,142.48,142.43,1.40393804]
[1728151838314,7.0189,142.48,142.43,7.0208]
[1728151839746,7.0189,142.48,142.42,80.83338046]
[1728151839747,20.0,142.5,142.44,82.23461306]
[1728151840033,7.0181,142.49,142.45,7.0195]
[1728151840235,7.0185,142.48,142.44,80.83088046]
[1728151840634,7.0185,142.48,142.44,67.55]
[1728151840815,7.0181,142.49,142.44,74.57]
[1728151845750,7.0181,142.49,142.45,7.0199]
[1728151856438,7.0186,142.48,142.44,84.0739]
[1728151857565,7.0181,142.49,142.44,91.0942]
[1728151859248,7.0181,142.49,142.45,1.40370052]
[1728151859867,7.0181,142.49,142.45,8.42350052]
[1728151860251,7.0181,142.49,142.45,7.0198]
[1728151864074,7.0181,142.49,142.44,84.0739]
[1728151864259,20.0,142.5,142.44,84.0739]
[1728151864457,23.776884,142.5,142.44,84.0739]
[1728151864661,30.794484,142.5,142.45,7.0198]
[1728151866076,19.6499,142.53,142.47,50.0]
[1728151866246,7.017,142.52,142.48,1.40338884]
[1728151866448,6.6619,142.53,142.47,70.29948046]
[1728151866449,7.017,142.51,142.47,50.0]
[1728151867267,7.0176,142.5,142.46,17.548]
[1728151867651,7.018,142.49,142.45,50.0]
[1728151869777,7.018,142.49,142.45,57.0198]
[1728151873567,43.776884,142.52,142.45,57.0198]
[1728151873774,7.0176,142.5,142.45,57.0198]
[1728151873974,7.0176,142.5,142.46,7.0194]
[1728151874171,27.017,142.51,142.47,7.0187]
[1728151874862,27.017,142.51,142.47,57.0187]
[1728151875268,7.0166,142.52,142.47,57.0187]
[1728151875586,7.0166,142.52,142.48,7.0185]
[1728151876790,7.0166,142.52,142.47,74.5659]
[1728151877364,7.0162,142.53,142.49,50.0]
[1728151877585,1.21539902,142.54,142.5,1.40328361]
[1728151877769,20.0,142.53,142.5,8.42068361]
[1728151878372,20.0,142.53,142.5,1.40328361]
[1728151878676,27.016,142.53,142.49,74.5622]
[1728151880486,4.61306786,142.54,142.49,67.5443]
[1728151880786,9.56518335,142.54,142.49,50.0]
[1728151880990,9.56518335,142.54,142.47,57.0189]
[1728151880991,7.0172,142.51,142.47,57.0189]
[1728151884111,17.5415,142.52,142.44,16.5239]
[1728151884404,56.764884,142.51,142.43,50.0]
[1728151885188,56.764884,142.51,142.43,57.0207]
[1728151885376,7.0186,142.48,142.43,57.0207]
[1728151887988,7.0191,142.47,142.43,57.0207]
[1728151890898,0.25098,142.5,142.43,50.0]
[1728151891083,43.776884,142.49,142.43,50.0]
[1728151891292,7.019,142.47,142.43,50.0]
[1728151892904,43.776884,142.49,142.43,50.0]
[1728151893089,7.0186,142.48,142.43,57.0208]
[1728151894993,20.0,142.49,142.45,57.0199]
[1728151895194,7.0178,142.5,142.45,57.0199]
[1728151895195,20.0,142.5,142.45,50.0]
[1728151895395,7.0184,142.49,142.45,50.0]
[1728151897804,6.5184,142.49,142.45,50.0]
[1728151901027,20.0,142.5,142.45,50.0]
[1728151901234,7.0191,142.47,142.43,50.0]
[1728151901885,7.0191,142.47,142.43,57.0209]
[1728151903999,23.776884,142.49,142.43,50.0]
[1728151904200,7.02,142.45,142.43,50.0]
[1728151904506,47.833684,142.49,142.43,50.0]
[1728151904721,7.0195,142.46,142.43,50.0]
[1728151906595,27.0186,142.48,142.44,1.40392026]
[1728151906789,20.0,142.48,142.45,7.0199]
[1728151907108,20.0,142.48,142.43,50.0]
[1728151908113,7.0191,142.47,142.43,50.0]
[1728151909017,20.0,142.48,142.43,50.0]
[1728151909310,7.0204,142.45,142.43,50.0]
[1728151909511,7.0196,142.46,142.43,50.0]
[1728151910319,20.0,142.48,142.43,50.0]
[1728151910526,27.0189,142.48,142.43,57.0207]
[1728151911227,7.019,142.47,142.43,57.0207]
[1728151911599,7.0201,142.45,142.43,50.0]
[1728151911794,20.0,142.48,142.43,50.0]
[1728151913126,7.0191,142.47,142.43,50.0]
[1728151913424,7.0191,142.47,142.43,57.0208]
[1728151914823,7.0191,142.47,142.43,50.0]
[1728151917203,7.0195,142.46,142.43,50.0]
[1728151925908,7.02,142.45,142.43,50.0]
[1728151926304,7.0195,142.46,142.43,50.0]
[1728151929343,20.0,142.48,142.41,24.576]
[1728151929636,7.0213,142.43,142.4,50.0]
[1728151929936,7.022,142.41,142.38,50.0]
[1728151930928,23.776884,142.43,142.38,50.0]
[1728151931235,7.021,142.43,142.38,57.0233]
[1728151931804,20.0,142.46,142.39,14.68517365]
[1728151932136,20.0,142.46,142.42,7.0213]
[1728151932429,20.0,142.46,142.41,30.83548046]
[1728151932642,27.0197,142.46,142.42,1.4040037]
[1728151932820,27.0197,142.46,142.43,1.40399606]
[1728151933134,7.0202,142.45,142.41,30.83548046]
[1728151933344,7.0206,142.44,142.41,13.28088046]
[1728151933508,20.0,142.48,142.41,13.28088046]
[1728151933509,23.776884,142.47,142.41,13.28088046]
[1728151933710,7.02,142.45,142.41,13.28088046]
[1728151936027,23.776884,142.47,142.41,13.28088046]
[1728151936028,7.0195,142.46,142.42,51.4040827]
[1728151936340,7.019,142.47,142.43,20.30168046]
[1728151936520,7.019,142.47,142.44,1.40388651]
[1728151936834,7.0186,142.48,142.44,1.40388651]
[1728151937033,7.0181,142.49,142.44,51.40388651]
[1728151937237,7.0181,142.49,142.45,7.0199]
[1728151937539,7.0181,142.49,142.46,1.40369755]
[1728151938436,7.0177,142.5,142.46,1.40369755]
[1728151938624,7.0177,142.5,142.46,51.40369755]
[1728151938812,7.0177,142.5,142.46,50.0]
[1728151939841,16.05566113,142.5,142.46,50.0]
[1728151940420,7.0177,142.5,142.46,50.0]
[1728151942337,7.0189,142.48,142.44,50.0]
[1728151946334,7.0176,142.5,142.45,7.0198]
[1728151946638,20.0,142.5,142.44,50.0]
[1728151946937,30.794984,142.49,142.45,17.5492]
[1728151947836,23.776884,142.49,142.45,17.5492]
[1728151948136,7.0185,142.48,142.45,17.5492]
[1728151948520,20.0,142.52,142.45,17.5492]
[1728151948723,7.0181,142.49,142.45,17.5492]
[1728151949848,7.0176,142.5,142.46,57.0193]
[1728151950764,7.0176,142.5,142.46,50.0]
[1728151951727,7.0176,142.5,142.45,37.84988046]
[1728151952723,7.0176,142.5,142.46,50.0]
[1728151952938,30.793984,142.51,142.46,72.8991]
[1728151953422,7.0176,142.5,142.46,65.8798]
[1728151953839,20.0,142.51,142.46,65.8798]
[1728151954044,7.0181,142.49,142.46,65.8798]
[1728151954244,20.0,142.51,142.46,65.8798]
[1728151954434,7.0176,142.5,142.46,65.8798]
[1728151954948,7.0189,142.48,142.43,7.0209]
[1728151955244,7.0189,142.48,142.44,50.0]
[1728151958538,7.0189,142.48,142.44,57.0204]
[1728151959246,23.776884,142.5,142.46,7.0194]
[1728151959565,7.0173,142.51,142.47,1.40353779]
[1728151959869,1.21543153,142.52,142.45,7.0198]
[1728151960162,7.0184,142.49,142.44,74.5708]
[1728151960959,20.0,142.53,142.44,50.0]
[1728151961267,7.0186,142.48,142.44,50.0]
[1728151961957,7.0186,142.48,142.44,57.0204]
[1728151963265,7.019,142.47,142.43,7.0209]
[1728151967856,23.776884,142.5,142.42,65.8798]
[1728151968161,7.019,142.47,142.42,72.9011]
[1728151968657,20.0,142.49,142.44,50.0]
[1728151968840,7.0185,142.48,142.44,50.0]
[1728151969239,7.0185,142.48,142.43,7.0208]
[1728151969759,7.0185,142.48,142.43,57.0208]
[1728151975250,7.0185,142.48,142.44,7.0203]
[1728151975569,7.0185,142.48,142.43,57.0208]
[1728151978069,7.0195,142.46,142.42,22.9012]
[1728151978365,7.0195,142.46,142.42,22.9011]
[1728151978949,23.776884,142.5,142.42,22.9011]
[1728151979162,7.019,142.48,142.43,57.0206]
[1728151979366,23.776884,142.48,142.43,50.0]
[1728151979554,7.019,142.47,142.43,50.0]
[1728151980265,7.0186,142.48,142.43,70.30168046]
[1728151984074,20.0,142.49,142.42,22.9011]
[1728151984378,23.776884,142.47,142.42,22.9011]
[1728151985079,7.0195,142.46,142.42,22.9011]
[1728151985644,7.0195,142.46,142.42,36.18198046]
[1728151985849,23.776884,142.47,142.42,36.18198046]
[1728151986087,30.795884,142.47,142.42,36.18198046]
[1728151986379,7.0185,142.48,142.44,50.0]
[1728151990954,7.0185,142.48,142.43,7.0208]
[1728151991269,7.0185,142.48,142.44,50.0]
[1728151993480,23.776884,142.49,142.42,65.8798]
[1728151993672,7.0194,142.47,142.42,86.18168046]
[1728151993881,7.0194,142.47,142.42,79.16068046]
[1728151994181,23.776884,142.49,142.42,79.16068046]
[1728151994182,7.0186,142.48,142.43,7.0207]
[1728151996399,7.0186,142.48,142.44,50.0]
[1728152003793,21.2216951,142.5,142.44,50.0]
[1728152004092,7.0183,142.49,142.45,7.0199]
[1728152006696,7.0187,142.48,142.44,50.0]
[1728152007179,7.0181,142.49,142.44,57.0204]
[1728152008717,7.0181,142.49,142.44,70.30128046]
[1728152009370,7.0186,142.48,142.44,70.30128046]
[1728152011875,7.018,142.49,142.44,63.28088046]
[1728152012076,7.018,142.49,142.45,7.0199]
[1728152014306,56.69919379,142.55,142.46,51.40367106]
[1728152014608,7.0161,142.53,142.48,70.29898046]
[1728152017187,43.776884,142.54,142.48,50.0]
[1728152017703,7.0164,142.53,142.48,57.0184]
[1728152018299,7.0166,142.52,142.48,57.0184]
[1728152019591,7.0171,142.51,142.48,50.0]
[1728152024097,7.0178,142.5,142.46,78.55428046]
[1728152024399,7.0178,142.5,142.46,65.2734]
[1728152024572,7.0178,142.5,142.46,72.2927]
[1728152026508,7.0171,142.51,142.47,7.019]
[1728152031415,7.0178,142.5,142.46,72.2928]
[1728152034095,7.0171,142.51,142.46,72.2928]
[1728152042326,7.0171,142.51,142.48,50.0]
[1728152044103,7.0166,142.52,142.48,50.0]
[1728152047328,6.4143,142.56,142.5,50.0]
[1728152047528,1.22139838,142.57,142.52,50.0]
[1728152047699,12.988,142.59,142.53,1.40298736]
[1728152048028,7.0147,142.56,142.53,1.40298736]
[1728152051704,7.0147,142.56,142.52,50.0]
[1728152052300,7.0152,142.55,142.52,50.0]
[1728152052506,7.0151,142.55,142.5,74.5608]
[1728152054921,7.0151,142.55,142.51,7.0169]
[1728152055129,41.437074,142.58,142.48,50.0]
[1728152055313,7.0165,142.52,142.48,57.0184]
[1728152055624,7.0161,142.53,142.48,57.0184]
[1728152055843,30.363374,142.56,142.48,57.0184]
[1728152056024,7.0166,142.52,142.48,50.0]
[1728152059544,7.0166,142.52,142.47,24.5658]
[1728152059739,7.0172,142.51,142.47,24.5658]
[1728152059938,7.0172,142.51,142.47,17.5469]
[1728152062742,7.0172,142.51,142.48,50.0]
[1728152063315,7.0172,142.51,142.47,17.5469]
[1728152063637,7.0172,142.51,142.48,50.0]
[1728152063843,7.0166,142.52,142.48,50.0]
[1728152067544,7.0166,142.52,142.49,1.40344278]
[1728152067744,7.0161,142.53,142.48,57.0184]
[1728152074151,7.0171,142.51,142.48,50.0]
[1728152074644,7.0175,142.5,142.47,17.5469]
[1728152074824,7.0175,142.5,142.46,15.2734]
[1728152075022,7.0175,142.5,142.45,7.0198]
[1728152078442,7.0184,142.49,142.44,87.85178046]
[1728152078640,7.0184,142.49,142.45,7.0199]
[1728152079351,7.0176,142.5,142.45,7.0199]
[1728152081144,7.0172,142.51,142.46,57.0191]
[1728152081339,7.0172,142.51,142.46,7.0191]
[1728152081737,7.018,142.49,142.45,7.02]
[1728152081940,7.0175,142.5,142.45,7.02]
[1728152082331,7.0175,142.5,142.46,57.0193]
[1728152083833,7.0172,142.51,142.47,7.0189]
[1728152085252,7.0172,142.51,142.46,50.0]